Cogmind - Beta 15 @@@ ROGUE MODE // 2025.09.04 @ 03:28:43 Player: Seven ate you Result: Smashed by cave-in Performance ------------- Evolutions (1) 500 Regions Visited (2) 400 Robots Destroyed (87) 435 Value Destroyed (2203) 2203 Prototype IDs (0) 0 Alien Tech Used (0) 0 Bonus (337) 337 TOTAL SCORE: 3875 Bonus ------- High Alert Combat Kills 337 Cogmind --------- Core Integrity 0/400 Matter 300/300 Energy 147/160 System Corruption 1% Temperature Cool (0) Movement Treading (170) Location -9/Materials Parts ------- > --- POWER (1) -------- Light Nuclear Core > --- PROPULSION (2) --- Armored Treads Armored Treads > --- UTILITY (4) ------ Cooling System Large Storage Unit Targeting Computer Light Armor Plating > --- WEAPON (2) ------- Beam Cannon > --- INVENTORY (15) --- Light Nuclear Core Armored Treads Armored Treads Wheel Cooling System Large Storage Unit Signal Interpreter Improved Terrain Scanner Hacking Suite Beam Cannon Beam Cannon Missile Launcher Missile Launcher Peak State ------------ > --- POWER ------------ Light Nuclear Core > --- PROPULSION ------- Armored Treads Armored Treads > --- UTILITY ---------- Cooling System Large Storage Unit Targeting Computer Light Armor Plating > --- WEAPON ----------- Missile Launcher Missile Launcher > --- INVENTORY -------- Light Nuclear Core Armored Treads Armored Treads Wheel Cooling System Large Storage Unit Signal Interpreter Improved Terrain Scanner Light Armor Plating Hacking Suite Beam Cannon Beam Cannon Beam Cannon Beam Cannon Beam Cannon [Rating: 22] Favorites ----------- Power Light Nuclear Core Engine Ion Engine Power Core Light Nuclear Core Propulsion Armored Treads Treads Armored Treads Hover Unit Hover Unit Utility Large Storage Unit Device Cooling System Storage Large Storage Unit Processor Targeting Computer Protection Light Armor Plating Weapon Beam Cannon Energy Cannon Beam Cannon Ballistic Gun Assault Rifle Launcher Rocket Launcher Build | -11 -10 -9 ------- Run | Yrd Mat Mat Slots Evolved 2 | . . 2 Power . | . . . Propulsion . | . . . Utility 2 | . . 2 Weapon . | . . . Parts Attached 35 | 6 10 19 Power 3 | 1 1 1 Engine 1 | 1 . . Core 2 | . 1 1 Reactor . | . . . Propulsion 8 | 2 4 2 Treads 6 | 2 2 2 Leg . | . . . Wheel . | . . . Hover 2 | . 2 . Flight . | . . . Utility 14 | 1 3 10 Device 4 | . 2 2 Storage 3 | 1 1 1 Processor 2 | . . 2 Hackware . | . . . Protection 5 | . . 5 Artifact . | . . . Weapon 10 | 2 2 6 Energy Gun . | . . . Energy Cannon 5 | . 2 3 Ballistic Gun 2 | 2 . . Ballistic Cannon . | . . . Launcher 3 | . . 3 Special Weapon . | . . . Impact Weapon . | . . . Slashing Weapon . | . . . Piercing Weapon . | . . . Special Melee Weapon . | . . . Unidentified Prototypes . | . . . Parts Lost 7 | . 1 6 Power 1 | . . 1 Propulsion . | . . . Utility 4 | . 1 3 Weapon 2 | . . 2 Highest Loss Streak 2 | . 1 2 To Critical Strikes . | . . . Average Backups 12 | 3 10 13 Power 1 | 1 1 . Propulsion 3 | 2 2 3 Utility 3 | . 2 4 Weapon 4 | . 3 5 Tool/Special . | . . . Unused Backups 27 | . 10 17 Power 2 | . . 2 Propulsion 10 | . 4 6 Utility 8 | . 1 7 Weapon 7 | . 5 2 Tool/Special . | . . . Average Slot Usage (%) 97 | . 97 97 Engine 2 | . 8 . Core 9 | . 5 10 Treads 23 | . 27 21 Device 10 | . 12 9 Storage 11 | . 14 11 Processor 8 | . . 11 Protection 6 | . . 9 Energy Cannon 20 | . 16 21 Ballistic Gun 3 | . 11 . Peak Build Rating 22 | 6 14 22 Average Rating 14 | 4 9 17 On Entrance 6 | . 6 14 Naked Turns . | . . . Heaviest Build 38 | 13 32 38 Greatest Support 46 | 40 46 46 Greatest Overweight (x) 2 | 2 . 1 Average Overweight (x) . | . . . Largest Inventory Capacity 15 | 8 15 15 Average Capacity 14 | 6 14 15 Most Carried 15 | 5 15 15 Average Carried 12 | 3 10 13 Final Capacity 15 | 8 15 15 Final Carried 14 | 5 14 13 Class Distribution -------------------- 100% | Mutant Dominant Class ---------------- Mutant | -10/Materials Mutant | -9/Materials Resources | -11 -10 -9 ----------- Run | Yrd Mat Mat Matter Collected 1119 | 219 325 575 Remotely . | . . . Salvage Created 2554 | 39 516 1999 Parts 169 | 5 38 126 Haulers Intercepted 4 | . 1 3 Recyclers Shooed 1 | . 1 . Parts Field Recycled . | . . . Retrieved Matter . | . . . Parts Self-Destructed . | . . . Prevented . | . . . Kills | -11 -10 -9 ------- Run | Yrd Mat Mat Combat Hostiles Destroyed 60 | . 12 48 Guns 9 | . 9 . Cannons 28 | . 3 25 AOE 23 | . . 23 Classes Destroyed 13 | 1 7 5 Builder 5 | . . 5 Tunneler 2 | 2 . . Hauler 4 | . 1 3 Recycler 4 | . 1 3 Operator 5 | . 2 3 Watcher 7 | . 2 5 Swarmer 16 | . 6 10 Grunt 27 | . 5 22 Brawler 1 | . . 1 Duelist 3 | . . 3 Protector 2 | . . 2 Sentry 10 | . . 10 Subdweller 1 | . 1 . Best Kill Streak 16 | 2 5 16 Combat Bots Only 10 | . 4 10 Max Kills in Single Turn 7 | 2 1 7 Gunslinging . | . . . Exploded 4 | . . 4 Melee . | . . . Uniques/NPCs Destroyed . | . . . Combat | -11 -10 -9 -------- Run | Yrd Mat Mat Hostile Shots Fired 230 | . 57 173 Missed 62 | . 19 43 Hits 168 | . 38 130 Melee 7 | . . 7 Projectile 161 | . 38 123 Critical Strikes 5 | . . 5 Damage Taken 2627 | . 384 2243 Core 493 | . 65 428 Absorbed by Shields . | . . . Core Remaining (%) 87 | 100 74 . Volleys Fired 169 | 1 44 124 Largest 2 | 2 2 2 Hottest 120 | 40 120 120 Shots Fired 325 | 2 87 236 Gun 73 | 2 71 . Cannon 233 | . 16 217 Launcher 19 | . . 19 Special . | . . . Kinetic 73 | 2 71 . Thermal 233 | . 16 217 Explosive 19 | . . 19 Electromagnetic . | . . . Robot Hit Streak 14 | 1 8 14 Robot Miss Streak 7 | 1 7 4 Penetration Max . | . . . Secondary Targets 2 | . 2 . Max Gunslinging Chain 1 | . 1 . Shots Hit Robots 218 | 1 47 170 Core Hits 131 | 2 23 106 Critical Kills 1 | 1 . . Critical Parts Destroyed . | . . . Critical Strikes 1 | 1 . . Destroy 1 | 1 . . Melee Attacks . | . . . Impact . | . . . Slashing . | . . . Piercing . | . . . Sneak Attacks . | . . . Combat Hostiles . | . . . Follow-up Attacks . | . . . Damage Inflicted 5758 | 22 638 5098 Guns 413 | 22 391 . Cannons 2962 | . 247 2715 Explosions 2383 | . . 2383 Melee . | . . . Ramming . | . . . Kinetic 413 | 22 391 . Thermal 2962 | . 247 2715 Explosive 2383 | . . 2383 Electromagnetic . | . . . Impact . | . . . Slashing . | . . . Piercing . | . . . Highest Corruption 3 | . 3 . Average Corruption 2 | . 2 . Corruption Purged . | . . . Corruption Blocked . | . . . Effects 17 | . 17 . Message Errors 5 | . 5 . Matter Fused 2 | . 2 . Heat Flow Errors 2 | . 2 . Energy Discharges 2 | . 2 . Parts Rejected 1 | . 1 . Data Loss (minor) 3 | . 3 . Data Loss (major) 1 | . 1 . Weapon Failures 1 | . 1 . Overload Shots . | . . . Overflow Damage 79 | . . 79 Projectiles 33 | . . 33 Explosions 46 | . . 46 Melee . | . . . Knockbacks . | . . . Impact . | . . . Kinetic . | . . . Secondary . | . . . Self-Inflicted Damage 147 | . . 147 Shots 3 | . . 3 Rammed . | . . . Targets Rammed . | . . . Kicked . | . . . Crushed . | . . . Highest Temperature 306 | . 204 306 Average Temperature 66 | . 60 67 Received Heat Transfer 927 | . 84 843 Siege Activations . | . . . Martial Activations . | . . . Shielding Activations . | . . . Robots Disrupted . | . . . Combat Hostiles . | . . . Robots Corrupted . | . . . Combat Hostiles . | . . . Parts Fried . | . . . Impact Corruptions . | . . . Robots Melted . | . . . Combat Hostiles . | . . . Parts Melted 11 | . 2 9 Heat Transferred 6101 | . 518 5583 Parts Sabotaged . | . . . Parts Stolen . | . . . Parts Stripped . | . . . Power Chain Reactions . | . . . Alert | -11 -10 -9 ------- Run | Yrd Mat Mat Maximum Alert Level 3 | . . 3 Low Security (%) 36 | 100 100 3 Level 1 4 | . . 6 Level 2 56 | . . 85 Level 3 3 | . . 5 Level 4 . | . . . Level 5 . | . . . High Security . | . . . Max Security . | . . . Peak Influence 805 | 10 140 805 Initial . | . . . Average 357 | . 29 528 Influence Increases 1818 | 10 306 1502 Destroy 0b10 Robot/C 1140 | . 220 920 Destroy 0b10 Robot/NC 145 | 10 30 105 Destroy Leader 272 | . 56 216 Disable Machine 120 | . . 120 Destroy Structure 111 | . . 111 Lose Combat Pursuer 30 | . . 30 Influence Decreases 1026 | 10 306 710 Time Decay 956 | 10 296 650 Lost Part 70 | . 10 60 Squads Dispatched 8 | . 3 5 Investigation 1 | . 1 . Extermination . | . . . Reinforcement 5 | . 2 3 Assault 2 | . . 2 Garrison . | . . . Intercept . | . . . Searches Triggered . | . . . Construction Impeded . | . . . Haulers Reinforced . | . . . Active Scanning Responses . | . . . Cargo Convoy Interrupts . | . . . Stealth | -11 -10 -9 --------- Run | Yrd Mat Mat Distress Signals 4 | . 1 3 Communications Jammed . | . . . Distress Signals . | . . . Times Spotted 87 | . 23 64 Peak Tracking Total 5 | . 5 5 Tactical Retreats 2 | . . 2 Traps | -11 -10 -9 ------- Run | Yrd Mat Mat Traps Triggered 6 | . 6 . Indirectly . | . . . Trap Hack Attempts . | . . . Triggered . | . . . Disarmed . | . . . Reprogrammed . | . . . Reused . | . . . Traps Extracted . | . . . Installed . | . . . Triggered . | . . . Machines | -11 -10 -9 ---------- Run | Yrd Mat Mat Machines Disabled 10 | . . 10 Max in Single Turn 1 | . . 1 Machines Repaired . | . . . Machines Dismantled . | . . . Machines Sabotaged . | . . . Overloaded Fab Kills . | . . . Hacking | -11 -10 -9 --------- Run | Yrd Mat Mat Machines Accessed 1 | . . 1 Terminals . | . . . Fabricators . | . . . Repair Stations . | . . . Recycling Units 1 | . . 1 Scanalyzers . | . . . Garrison Access . | . . . Total Hacks 1 | . . 1 Successful 1 | . . 1 Failed . | . . . Catastrophic . | . . . Database Lockouts . | . . . Manual . | . . . Terminals . | . . . Fabricators . | . . . Repair Stations . | . . . Recycling Units 1 | . . 1 Scanalyzers . | . . . Garrison Access . | . . . Terminal Hacks . | . . . Fabricator Hacks . | . . . Repair Station Hacks . | . . . Recycling Unit Hacks 1 | . . 1 Retrieve Components 1 | . . 1 Scanalyzer . | . . . Garrison Access Hacks . | . . . Unauthorized Hacks . | . . . Terminals . | . . . Fabricators . | . . . Repair Stations . | . . . Recycling Units . | . . . Scanalyzers . | . . . Garrison Access . | . . . Data Cores Recovered . | . . . Used . | . . . Hacking Detections . | . . . Full Trace Events . | . . . Feedback Events . | . . . Feedback Blocked . | . . . Robot Schematics Acquired . | . . . Robots Built . | . . . Authchips . | . . . Time . | . . . Total Robot Build Rating . | . . . Part Schematics Acquired . | . . . Parts Built . | . . . Authchips . | . . . Time . | . . . Total Part Build Rating . | . . . Parts Repaired . | . . . Time . | . . . Parts Recycled . | . . . Recycled Matter . | . . . Retrieved Matter . | . . . Retrieved Components 8 | . . 8 Parts Scanalyzed . | . . . Part Schematics Acquired . | . . . Parts Damaged . | . . . Bothacking | -11 -10 -9 ------------ Run | Yrd Mat Mat Used RIF Installer . | . . . Robots Hacked . | . . . Non-combat . | . . . Combat . | . . . Robot Hacks Applied . | . . . Relay Couplers Released . | . . . Fabnet Peak Effective % . | . . . Robots Rewired . | . . . Allies Hacked . | . . . Hacks Repelled . | . . . Allies | -11 -10 -9 -------- Run | Yrd Mat Mat Total Allies . | . . . Largest Group . | . . . Highest-Rated Group . | . . . Highest-Rated Ally . | . . . Total Orders . | . . . Ally Attacks . | . . . Total Damage . | . . . Kills . | . . . Allies Corrupted . | . . . Allies Melted . | . . . Intel | -11 -10 -9 ------- Run | Yrd Mat Mat Active Infowar (turns) 1419 | . 1084 335 Optics 335 | . . 335 Terrain 958 | . 846 112 Structural 238 | . 238 . Robot Analysis Total . | . . . Derelict Logs Recovered . | . . . Drone Launches . | . . . Drone Recoveries . | . . . Exploration | -11 -10 -9 ------------- Run | Yrd Mat Mat Turns Passed 3940 | 93 1250 2597 Spaces Moved 1976 | 52 660 1264 Core 16 | 16 . . Treads 1960 | 36 660 1264 Legs . | . . . Wheels . | . . . Hover . | . . . Flight . | . . . Fastest Speed 50 | 50 160 160 Average Speed 164 | 143 160 167 Slowest Speed 250 | 160 160 250 Overloaded Moves . | . . . Propulsion Burnouts . | . . . Robots Hopped . | . . . Potential Cave-ins . | . . . Cave-ins Triggered 1 | . . 1 Exploration Rate (%) 63 | 5 90 94 Regions Visited 2 Branch Regions . Pre-discovered Areas . | . . . Known Exits Taken . | . . . Unknown Exits Taken 2 | 1 1 . Scrap Searched . | . . . Spaces Dug . | . . . Terrain Destroyed 122 | . . 122 Melee . | . . . Projectile . | . . . AOE 122 | . . 122 Terrain Rammed . | . . . Walls Destroyed . | . . . Machines Disabled . | . . . Actions | -11 -10 -9 --------- Run | Yrd Mat Mat Total 2361 | 69 781 1511 Wait 59 | . 8 51 Move 1974 | 51 659 1264 Hop . | . . . Pick Up 67 | 11 34 22 Fast Attach . | . . . Attach 26 | 6 8 12 Detach . | . . . Swap 29 | . 7 22 Drop 37 | . 21 16 Fire 169 | 1 44 124 Melee . | . . . Ram . | . . . Kick . | . . . Crush . | . . . Escape Stasis . | . . . Rewire . | . . . Trap . | . . . Miscellaneous . | . . . Route ------- -11/Scrapyard -10/Materials (discovered 4 exits: *Mat x3 / [*Min]) -9/Materials (discovered 5 exits: [*Mat x3] / [*Min x2]) History --------- Turn | Location | Event 20 | -11/Scrapyard | Discovered new exit (range 14) 94 | -11/Scrapyard | Entered Materials 179 | -10/Materials | Discovered new exit (range 16) 238 | -10/Materials | Discovered new exit (range 12) 304 | -10/Materials | Build established: Mutant 491 | -10/Materials | Discovered new exit (range 15) 694 | -10/Materials | Derelicts attacked the area 984 | -10/Materials | Discovered new exit (range 9) 1344 | -10/Materials | Entered another Materials area 1344 | -9/Materials | Evolved 2 slots: Utility x2 1435 | -9/Materials | Discovered new exit (range 11) 1451 | -9/Materials | Destroyed 10 combat bots 1606 | -9/Materials | Discovered new exit (range 5) 2688 | -9/Materials | Discovered new exit (range 6) 2944 | -9/Materials | First assault squad dispatched 2947 | -9/Materials | Discovered new exit (range 8) 3050 | -9/Materials | Core integrity fell below 50% 3551 | -9/Materials | Discovered new exit (range 16) 3735 | -9/Materials | Core integrity fell below 20% 3942 | -9/Materials | Crushed by falling debris 3942 | -9/Materials | Smashed by cave-in Last Messages --------------- 03863_ K-01 Serf collects debris. 03868_ Acquired 27 matter. 03869_ K-01 Serf cleans the Nuclear Reactor. 03872_ The unstable cave ceiling collapses. 03872_ 32 Matter crushed. 03873_ K-01 Serf collects debris. 03873_ Acquired 26 matter. 03876_ K-01 Serf collects debris. 03878_ Acquired 102 matter. 03879_ K-01 Serf collects debris. 03882_ R-06 Scavenger collects Structural Scanner. 03891_ K-01 Serf collects debris. 03914_ Acquired 2 matter. 03936_ Destroyed Lgt. Ion Engine. 03941_ O-16 Technician destroyed. 03942_ The unstable cave ceiling collapses. 03942_ Crushed by falling debris. [Achievement: Unlikely Earthworm] 03942_ Beam Cannon destroyed. 03942_ System corrupted by crushing effect (+1). Map ----- +----------------------------------------------------+ | | | | | | | | | | | | | | | ?????????????#######????????????????????? | | ??#####??????# * #???????????????????? | | ??#^T ??????# #???????????????????? | | ??# ??????# #?######????????????? | | ??# !??????# ###!!!!##???????????? | | ??# ###???# ##! !#???????????? | | ??# + #???# ! ## #???????????? | | ??# # #???#####+####### ####????????? | | ??# # ######## ###### #????????? | | ??#! + [% #????????? | | ??####+#+######## ###### ####????????? | | ??+ # ??????#####?### ###?????????? | | ??#### # ????????##### # #######????? | | ###### # ???????# * #* # T #????? | | ## # ???????# ]! #! #????? | | ## # ??????# !! ! #????? | | ## #####??????# %%# """ #????? | | ## ########## *= """ #????? | | %+ %+! @ %!""" #????? | | ## #############+# # # #########? | | ## ###########?#"## # #? | | ## # "" # ## # #? | | ## # ""S ###### + =%!# | | ###### # "" [ #????# # ||| #? | | # #????###### || #? | | %+ """ ""????????????# || #? | | % # """ ""????????????# #? | | #### % # """ ""????????????#] #? | | #??# # ????????????###########? | | #??# #########??????????????????????? | | #??# ##################?????????????? | | #??# +?????????????? | | #??# ##### #???????????????? | | #??# #???# " !! #???????????????? | | ###??## ##???# "T !! #???????????????? | | #????# #????# "" ! #???????????????? | | "#????# #????# #???????????????? | | "#????#+#????# #???????????????? | | "#?????% ????# ##### #######+##??????? | | "#????? ????# #???# #??????? | | #????? ????# #???# #??????? | | #?????? ????# ????#### #??????? | | #??????"????#+######## ########??????? | +----------------------------------------------------+ Best States ------------- Heat Dissipation 50 Energy Generation 14 Energy Capacity 250 Matter Stores 300 Matter Capacity 300 Sight Range 18 Terrain Scan Range 16 Terrain Scan Density 10 Armor Coverage 150 Evasion (%) 40 Targeting Accuracy 5 Recoil Reduction 2 Item Schematics ----------------- None Robot Schematics ------------------ None Fabricated ------------ Nothing Repaired ---------- Nothing Alien Tech Used ----------------- None Achievements -------------- Let's See Who's Tougher Unlikely Earthworm Challenges ------------ None Game ------ Seed TeleporterHellfireMeganuke Manual? 0 Play Time 00:33:44 Cumulative 8.8 hours Start 2025.09.04 @ 02:55:55 End 2025.09.04 @ 03:28:43 Sessions 1 Manual Loads 0 Difficulty Rogue Special Mode None Game No. 24 Rogue 24 Adventurer 0 Explorer 0 Win Type - Total 0 Types 0/0/0/0/0/0/0/0/0/0 Lore% 1 Gallery% 10 Achievement% 15 Wizard Run 0 Options --------- Layout 0 ASCII 0 Keyboard 0 Movement Mouse Keybinds 0 Fullscreen 2 Font 24/Smallcaps Map View 76x50 Zoom Use 0% Tactical HUD 1 Map Filters NONE Filters NONE Steam 1 RUN: 550ca8d6-cb43-4165-b116-f310a4ac3e47